bitfinex/quotes_BTCUSD_20251120
["timestamp","ask_amount","ask_price","bid_price","bid_amount"]
[1763611430882,0.010808,92524.0,92518.0,0.0108087]
[1763611431093,0.010808,92524.0,92514.0,0.00899]
[1763611431094,0.01080824,92522.0,92514.0,0.01979917]
[1763611431307,0.01080847,92520.0,92515.0,0.01080905]
[1763611431513,0.01080859,92519.0,92515.0,0.01080905]
[1763611431754,0.01514,92525.0,92514.0,0.01979917]
[1763611431755,0.01080602,92541.0,92535.0,0.01080672]
[1763611431955,0.01080602,92541.0,92532.0,0.01080707]
[1763611431956,0.00364,92537.0,92532.0,0.22694738]
[1763611432161,0.1102925,92535.0,92533.0,0.00871]
[1763611432371,0.1102925,92535.0,92534.0,0.2269436]
[1763611432590,0.1102925,92535.0,92527.0,0.01951765]
[1763611432591,0.01080718,92531.0,92527.0,0.01951765]
[1763611432995,0.00364,92530.0,92527.0,0.01951765]
[1763611433247,0.01514,92528.0,92524.0,0.010808]
[1763611433466,0.01080777,92526.0,92521.0,0.01080835]
[1763611433665,0.01080777,92526.0,92523.0,0.01080812]
[1763611433889,0.01080777,92526.0,92522.0,0.01080824]
[1763611434080,0.01080788,92525.0,92522.0,0.01080824]
[1763611434291,0.010808,92524.0,92520.0,0.01080847]
[1763611435039,0.01080788,92525.0,92523.0,0.001]
[1763611435242,0.01080788,92525.0,92522.0,0.001]
[1763611435441,0.01080788,92525.0,92521.0,0.01080835]
[1763611435850,0.01080765,92527.0,92523.0,0.01080812]
[1763611436276,0.01080788,92525.0,92521.0,0.01080835]
[1763611436684,0.00040205,92522.0,92520.0,0.001]
[1763611436892,0.01080824,92522.0,92517.0,0.01080882]
[1763611437109,0.01080835,92521.0,92517.0,0.01080882]
[1763611437318,0.01118169,92521.0,92517.0,0.01080882]
[1763611437541,0.01080835,92521.0,92517.0,0.01080882]
[1763611437960,0.01080835,92521.0,92520.0,0.001]
[1763611438164,0.22697794,92520.0,92517.0,0.001]
[1763611438368,0.24281414,92518.0,92517.0,0.001]
[1763611438587,0.02161542,92531.0,92517.0,0.01080882]
[1763611438795,0.1139325,92529.0,92525.0,0.01080788]
[1763611439012,0.1139325,92529.0,92526.0,0.01080777]
[1763611439439,0.11403749,92529.0,92526.0,0.01080777]
[1763611439643,0.11403749,92529.0,92527.0,0.21615312]
[1763611439843,0.11039749,92529.0,92527.0,0.21615312]
[1763611440055,0.00364,92528.0,92527.0,0.21615312]
[1763611440260,0.00010499,92529.0,92528.0,0.0363]
[1763611440498,0.00374499,92529.0,92528.0,0.0363]
[1763611440700,0.00010499,92529.0,92528.0,0.03385507]
[1763611440876,0.00010499,92529.0,92528.0,0.0363]
[1763611441181,0.00010499,92529.0,92528.0,0.1363]
[1763611441601,0.00010499,92529.0,92528.0,0.15791507]
[1763611441776,0.00010499,92529.0,92528.0,0.15891507]
[1763611442162,0.00110499,92529.0,92528.0,0.15891507]
[1763611442627,0.00110499,92529.0,92528.0,0.101]
[1763611442832,0.00110499,92529.0,92528.0,0.1]
[1763611443088,0.00110499,92529.0,92528.0,0.11637]
[1763611443408,0.00210499,92529.0,92528.0,0.11637]
[1763611444358,0.04268499,92529.0,92528.0,0.1]
[1763611444815,0.04268499,92529.0,92516.0,0.01080894]
[1763611444816,0.01080835,92521.0,92516.0,0.01080894]
[1763611445133,0.1102925,92519.0,92517.0,0.01080882]
[1763611445349,0.1102925,92519.0,92518.0,0.21617414]
[1763611446619,0.00364,92520.0,92518.0,0.27667155]
[1763611446801,0.00010499,92529.0,92528.0,0.21615078]
[1763611447008,0.00374499,92529.0,92528.0,0.21615078]
[1763611448100,0.00434803,92529.0,92528.0,0.21715078]
[1763611448972,0.00070803,92529.0,92528.0,0.25603078]
[1763611449185,0.00434803,92529.0,92528.0,0.25603078]
[1763611452487,0.00434803,92529.0,92528.0,0.001]
[1763611454538,0.02083803,92529.0,92528.0,0.001]
[1763611455206,0.04492803,92529.0,92528.0,0.001]
[1763611457028,0.05676803,92529.0,92528.0,0.001]
[1763611457746,0.03267803,92529.0,92528.0,0.001]
[1763611459312,0.01618803,92529.0,92528.0,0.001]
[1763611460725,0.00434803,92529.0,92528.0,0.01737]
[1763611460931,0.00434803,92529.0,92528.0,0.03898507]
[1763611461128,0.02083803,92529.0,92528.0,0.001]
[1763611462351,0.26107648,92529.0,92528.0,0.001]
[1763611462562,0.02083803,92529.0,92528.0,0.001]
[1763611463006,0.04492803,92529.0,92528.0,0.001]
[1763611463152,0.02083803,92529.0,92528.0,0.001]
[1763611464902,0.04492803,92529.0,92528.0,0.001]
[1763611465335,0.00434803,92529.0,92528.0,0.001]
[1763611470845,0.02596089,92529.0,92528.0,0.001]
[1763611471616,0.04115089,92529.0,92528.0,0.001]
[1763611471877,0.06437089,92529.0,92528.0,0.001]
[1763611472057,0.04115089,92529.0,92528.0,0.001]
[1763611472838,0.02232089,92529.0,92528.0,0.04106]
[1763611473052,0.00434803,92529.0,92528.0,0.01723]
[1763611474386,0.00434803,92529.0,92528.0,0.04106]
[1763611474594,0.00070803,92529.0,92528.0,0.04106]
[1763611475017,0.00070803,92529.0,92528.0,0.14106]
[1763611475548,0.00070803,92529.0,92528.0,0.14006]
[1763611476915,0.00170803,92529.0,92528.0,0.14006]
[1763611478350,0.00170803,92529.0,92528.0,0.16167507]
[1763611479266,0.00170803,92529.0,92528.0,0.48467507]
[1763611479436,0.00170803,92529.0,92528.0,0.46306]
[1763611479640,0.00170803,92529.0,92528.0,0.56306]
[1763611479827,0.00070803,92529.0,92528.0,0.56306]
[1763611480218,0.00299803,92529.0,92528.0,0.61516249]
[1763611480433,0.00364,92561.0,92558.0,0.01080403]
[1763611480728,0.00368228,92561.0,92559.0,0.21607839]
[1763611480933,0.00368228,92561.0,92560.0,0.00845]
[1763611481127,0.00368228,92561.0,92560.0,0.02468]
[1763611483490,0.00368228,92561.0,92560.0,0.02568]
[1763611486059,0.00368228,92561.0,92559.0,0.05628015]
[1763611486279,0.00088985,92560.0,92559.0,0.05628015]
[1763611487280,0.00088985,92560.0,92559.0,0.05795015]
[1763611488531,0.00088985,92560.0,92559.0,0.05728015]
[1763611488775,0.00088985,92560.0,92559.0,0.001]
[1763611489466,0.00088985,92560.0,92559.0,0.002]
[1763611490096,0.01717985,92560.0,92559.0,0.002]
[1763611490513,0.00088985,92560.0,92559.0,0.002]
[1763611491145,0.00088985,92560.0,92559.0,0.001]
[1763611491347,0.00088985,92560.0,92557.0,0.01080415]
[1763611491540,0.01448596,92561.0,92559.0,0.001]
[1763611492601,0.23056149,92561.0,92557.0,0.01080415]
[1763611492839,0.0108038,92560.0,92557.0,0.01080415]
[1763611494686,0.0108038,92560.0,92550.0,0.22690294]
[1763611494687,0.0108045,92554.0,92550.0,0.22690294]
[1763611495658,0.0108045,92554.0,92552.0,0.1]
[1763611495866,0.22689153,92556.0,92552.0,0.1]
[1763611496678,0.01629,92553.0,92552.0,0.1]
[1763611496836,0.01629,92553.0,92552.0,0.101]
[1763611497390,0.01629,92553.0,92552.0,0.1]
[1763611497774,0.01629,92553.0,92552.0,0.101]
[1763611498610,0.03901,92553.0,92552.0,0.101]
[1763611499116,0.03901,92553.0,92552.0,0.1]
[1763611499311,0.03901,92553.0,92552.0,0.101]
[1763611500478,0.03901,92553.0,92552.0,0.001]
[1763611502015,0.03969897,92553.0,92552.0,0.001]
[1763611504394,0.36269897,92553.0,92552.0,0.001]
[1763611505399,0.01080637,92538.0,92534.0,0.01080683]
[1763611505614,0.22690482,92550.0,92542.0,0.21611606]
[1763611505796,0.0108052,92548.0,92545.0,0.01080555]
[1763611505974,0.01080578,92543.0,92535.0,0.01080672]
[1763611506177,0.01080613,92540.0,92536.0,0.0108066]
[1763611506376,0.01080625,92539.0,92535.0,0.01080672]
[1763611506556,0.00364,92538.0,92535.0,0.01080672]
[1763611506757,0.01080648,92537.0,92534.0,0.001]
[1763611507639,0.00364,92538.0,92536.0,0.21613209]
[1763611507841,0.00364,92538.0,92537.0,0.00067]
[1763611509076,0.00364,92538.0,92537.0,0.00167]
[1763611509942,0.00364,92538.0,92537.0,0.00367]
[1763611510084,0.00364,92538.0,92537.0,0.21979976]
[1763611510284,0.00364,92538.0,92537.0,0.003]
[1763611512657,0.00364,92538.0,92537.0,0.00367]
[1763611512955,0.00389841,92538.0,92537.0,0.02528297]
[1763611513174,0.00389841,92538.0,92537.0,0.24141273]
[1763611513372,0.00389841,92538.0,92537.0,0.21979976]
[1763611513514,0.00389841,92538.0,92537.0,0.24141273]
[1763611514451,0.00389841,92538.0,92537.0,0.21979976]
[1763611516037,0.00025841,92538.0,92537.0,0.22046976]
[1763611516912,0.00025841,92538.0,92537.0,0.32046976]
[1763611518654,0.00025841,92538.0,92537.0,0.31746976]
[1763611518857,0.00325841,92538.0,92537.0,0.31746976]
[1763611519262,0.00025841,92538.0,92537.0,0.31746976]
[1763611519627,0.00325841,92538.0,92537.0,0.31746976]
[1763611520311,4.228e-05,92561.0,92560.0,0.21607605]
[1763611520525,4.228e-05,92561.0,92560.0,0.21674605]
[1763611520748,4.228e-05,92561.0,92560.0,0.21741605]
[1763611522200,4.228e-05,92561.0,92560.0,0.31741605]
[1763611523023,4.228e-05,92561.0,92560.0,0.10134]
[1763611523467,4.228e-05,92561.0,92560.0,0.31741605]
[1763611525822,0.00070245,92561.0,92560.0,0.31741605]
[1763611533197,0.00070245,92561.0,92560.0,0.31674605]
[1763611533390,0.00070245,92561.0,92560.0,0.10067]
[1763611533977,0.00070245,92561.0,92560.0,0.1]
[1763611536679,0.00070245,92561.0,92540.0,0.17719]
[1763611536680,0.21611855,92542.0,92540.0,0.17719]
[1763611536879,0.01081139,92495.0,92492.0,0.01217]
[1763611537018,0.21623257,92493.0,92492.0,0.01217]
[1763611538203,0.21623257,92493.0,92492.0,0.01459261]
[1763611538381,0.1139325,92494.0,92492.0,0.01259261]
[1763611538601,0.21987091,92494.0,92492.0,0.01259261]
[1763611538896,0.21987091,92494.0,92492.0,0.01459261]
[1763611539096,0.21987091,92494.0,92492.0,0.00242261]
[1763611539297,0.21987091,92494.0,92492.0,0.00342261]
[1763611539884,0.21987091,92494.0,92492.0,0.00242261]
[1763611540137,0.21987091,92494.0,92492.0,0.00342261]
[1763611540378,0.21987091,92494.0,92492.0,0.00142261]
[1763611540582,0.21987091,92494.0,92492.0,0.00042261]
[1763611540782,0.21987091,92494.0,92492.0,0.00242261]
[1763611540987,0.21987091,92494.0,92492.0,0.00142261]
[1763611541390,0.21987091,92494.0,92492.0,0.00342261]
[1763611545668,0.21987091,92494.0,92492.0,0.00242261]
[1763611545831,0.21987091,92494.0,92492.0,0.00342261]
[1763611546744,0.21987091,92494.0,92492.0,0.00142261]
[1763611546951,0.00432963,92493.0,92492.0,0.00242261]
[1763611548148,0.00432963,92493.0,92492.0,0.00142261]
[1763611548955,0.00432963,92493.0,92492.0,0.00242261]
[1763611549371,0.00432963,92493.0,92492.0,0.01904261]
[1763611549581,0.2242022,92493.0,92492.0,0.01904261]
[1763611549984,0.00796963,92493.0,92492.0,0.04159261]
[1763611550186,0.00364,92493.0,92492.0,0.04159261]
[1763611550494,0.00364,92493.0,92492.0,0.0632161]
[1763611551067,0.03246811,92499.0,92496.0,0.01081127]
[1763611551324,0.323,92502.0,92498.0,0.01662]
[1763611551527,0.323,92502.0,92500.0,0.01662]
[1763611551702,0.53921387,92501.0,92500.0,0.01662]
[1763611551900,0.53921387,92501.0,92500.0,0.03917]
[1763611552232,0.54285387,92501.0,92500.0,0.03917]
[1763611553021,0.54285387,92501.0,92500.0,0.01762]
[1763611553413,0.54285387,92501.0,92500.0,0.01962]
[1763611555136,0.54285387,92501.0,92500.0,0.003]
[1763611559079,0.54285387,92501.0,92500.0,0.01962]
[1763611560516,0.54285387,92501.0,92500.0,0.003]
[1763611563347,0.57290893,92501.0,92500.0,0.003]
[1763611564111,0.57290893,92501.0,92500.0,0.01877]
[1763611564323,0.57292207,92501.0,92500.0,0.04313]
[1763611566075,0.59615287,92501.0,92500.0,0.04313]
[1763611569247,0.59615287,92501.0,92500.0,0.01877]
[1763611569442,0.59615287,92501.0,92500.0,0.003]
[1763611570503,0.056939,92501.0,92500.0,0.04313]
[1763611570726,0.27315287,92501.0,92500.0,0.04313]
[1763611571131,0.24992207,92501.0,92500.0,0.04313]
[1763611572013,0.25006771,92501.0,92500.0,0.04313]
[1763611572690,0.03385384,92501.0,92500.0,0.04313]
[1763611573340,0.03021384,92501.0,92500.0,0.04313]
[1763611573675,0.02382142,92501.0,92500.0,0.06475162]
[1763611573910,0.02018142,92501.0,92500.0,0.06475162]
[1763611574119,0.02382142,92501.0,92500.0,0.06475162]
[1763611574325,0.02382142,92501.0,92500.0,0.16475162]
[1763611575508,0.02018142,92501.0,92500.0,0.16475162]
[1763611576927,0.02018142,92501.0,92500.0,0.16175162]
[1763611577252,0.02018142,92501.0,92500.0,0.16275162]
[1763611578075,0.02018142,92501.0,92500.0,0.16475162]
[1763611578273,0.00364,92502.0,92501.0,0.21621387]
[1763611578514,0.02382909,92502.0,92501.0,0.25634387]
[1763611578727,0.02382909,92502.0,92501.0,0.04013]
[1763611579130,0.02382909,92502.0,92501.0,0.25634387]
[1763611579510,0.02382909,92502.0,92501.0,0.35634387]
[1763611579712,0.02382909,92502.0,92501.0,0.35734387]
[1763611580136,0.02382909,92502.0,92501.0,0.35834387]
[1763611581017,0.02382909,92502.0,92501.0,0.14213]
[1763611585543,0.02382909,92502.0,92501.0,0.16375138]
[1763611586317,0.02018909,92502.0,92501.0,0.14213]
[1763611586517,0.01080718,92531.0,92524.0,0.010808]
[1763611586735,0.02018747,92530.0,92527.0,0.21615312]
[1763611586929,0.02382747,92529.0,92528.0,0.23998006]
[1763611587136,0.02018747,92529.0,92528.0,0.23998006]
[1763611587334,0.00364,92529.0,92528.0,0.25538006]
[1763611588461,0.00364,92529.0,92520.0,0.01162]
[1763611588462,0.21616072,92524.0,92520.0,0.01162]
[1763611588658,0.01080777,92526.0,92520.0,0.01162]
[1763611588659,0.01080777,92526.0,92521.0,0.01080835]
[1763611588874,0.010808,92524.0,92520.0,0.03545]
[1763611589034,0.010808,92524.0,92521.0,0.02383]
[1763611589238,0.010808,92524.0,92523.0,0.0154]
[1763611589670,0.010808,92524.0,92523.0,0.03923]
[1763611589900,0.010808,92524.0,92523.0,0.13923]
[1763611591165,0.010808,92524.0,92523.0,0.101]
[1763611591166,0.43598348,92524.0,92523.0,0.101]
[1763611591391,0.35394895,92524.0,92523.0,0.103]
[1763611592258,0.01080987,92508.0,92505.0,0.01162]
[1763611592520,0.4332925,92506.0,92505.0,0.01172499]
[1763611593501,0.4332925,92506.0,92505.0,0.01272499]
[1763611593854,0.4332925,92506.0,92505.0,0.02722499]
[1763611594068,0.4332925,92506.0,92505.0,0.02922499]
[1763611594267,0.4332925,92506.0,92505.0,0.03022499]
[1763611594440,0.1102925,92506.0,92505.0,0.03022499]
[1763611595251,0.1102925,92506.0,92505.0,0.01472499]
[1763611595672,0.1102925,92506.0,92505.0,0.03022499]
[1763611596354,0.1102925,92506.0,92505.0,0.00310499]
[1763611597119,0.32649469,92506.0,92505.0,0.00210499]
[1763611597292,0.32649469,92506.0,92505.0,0.00010499]
[1763611597514,0.32649469,92506.0,92505.0,0.00150704]
[1763611597683,0.32649469,92506.0,92505.0,0.00250704]
[1763611598415,0.32649469,92506.0,92505.0,0.00350704]
[1763611600503,0.37859718,92506.0,92505.0,0.00350704]
[1763611600707,0.38922102,92506.0,92505.0,0.00350704]
[1763611601329,0.21626063,92481.0,92480.0,0.0002]
[1763611601522,0.65319313,92481.0,92480.0,0.00062261]
[1763611601746,0.70529562,92481.0,92480.0,0.00062261]
[1763611602066,0.01081513,92463.0,92458.0,0.01844833]
[1763611602271,0.22712278,92461.0,92458.0,4.23e-05]
[1763611602498,0.00364,92462.0,92459.0,0.02342]
[1763611602711,0.01445525,92462.0,92461.0,0.01161]
[1763611602921,0.01445525,92462.0,92461.0,0.02711]
[1763611603134,0.1102925,92464.0,92461.0,0.03792537]
[1763611603350,0.33381443,92469.0,92468.0,0.0155]
[1763611603592,0.32664,92469.0,92468.0,0.0155]
[1763611603806,0.00364,92469.0,92468.0,0.03892]
[1763611604444,0.2199287,92469.0,92468.0,0.0165]
[1763611605279,0.2199287,92469.0,92468.0,0.0175]
[1763611605485,0.2162887,92469.0,92468.0,0.0175]
[1763611605721,0.21625609,92483.0,92468.0,0.0175]
[1763611605722,0.323,92475.0,92470.0,0.22710067]
[1763611605934,0.323,92475.0,92469.0,0.01081443]
[1763611605935,0.323,92475.0,92474.0,0.02711]
[1763611606135,0.32664,92475.0,92474.0,0.02711]
[1763611606348,0.32664,92475.0,92474.0,0.05053]
[1763611606758,0.00364,92475.0,92474.0,0.05053]
[1763611606981,0.00364,92475.0,92474.0,0.05153]
[1763611607312,0.323,92476.0,92475.0,0.01081373]
[1763611607526,0.32664,92476.0,92475.0,0.02342]
[1763611607680,0.54291233,92476.0,92475.0,0.03892]
[1763611608583,0.54291233,92476.0,92474.0,0.01261]
[1763611609859,0.32664,92476.0,92475.0,0.0155]
[1763611610064,0.32664,92476.0,92475.0,0.03892]
[1763611610243,0.32664,92476.0,92475.0,0.04092]
[1763611610441,0.32664,92476.0,92475.0,0.03892]
[1763611611183,0.32664,92476.0,92475.0,0.0155]
[1763611611397,0.32664,92476.0,92475.0,0.0175]
[1763611611796,0.32664,92476.0,92475.0,0.002]
[1763611612377,0.32664,92476.0,92475.0,0.003]
[1763611612586,0.32664,92476.0,92475.0,0.00386212]
[1763611614196,0.32664,92476.0,92475.0,0.00186212]
[1763611614806,0.32664,92476.0,92475.0,0.00086212]
[1763611615014,0.32664,92476.0,92475.0,0.01736212]
[1763611615015,0.323,92476.0,92475.0,0.01736212]
[1763611615222,0.323,92476.0,92475.0,0.01836212]
[1763611615424,0.32664,92476.0,92475.0,0.04178212]
[1763611615625,0.32664,92476.0,92475.0,0.01736212]
[1763611615828,0.32664,92476.0,92475.0,0.04078212]
[1763611616027,0.32664,92476.0,92475.0,0.01836212]
[1763611616424,0.54291233,92476.0,92475.0,0.00286212]
[1763611617874,0.32664,92476.0,92475.0,0.01836212]
[1763611618362,0.54291233,92476.0,92475.0,0.01836212]
[1763611620079,0.32664,92476.0,92475.0,0.01836212]
[1763611621523,0.32664,92476.0,92475.0,0.00286212]
[1763611624352,0.32664,92476.0,92475.0,0.01920212]
[1763611624555,0.32664,92476.0,92475.0,0.00286212]
[1763611625772,0.32664,92476.0,92475.0,0.00186212]
[1763611626199,0.32664,92476.0,92475.0,0.00286212]
[1763611626556,0.34677849,92476.0,92475.0,0.00186212]
[1763611626726,0.34677849,92476.0,92475.0,0.00286212]
[1763611626932,0.34677849,92476.0,92475.0,0.00186212]
[1763611627936,0.39888098,92476.0,92475.0,0.00186212]
[1763611631712,0.34313849,92476.0,92475.0,0.00186212]
[1763611631949,0.34677849,92476.0,92475.0,0.00186212]
[1763611632345,0.34313849,92476.0,92475.0,0.00186212]
[1763611632550,0.34677849,92476.0,92475.0,0.00186212]
[1763611635365,0.55941082,92476.0,92475.0,0.00186212]
[1763611635568,0.56305082,92476.0,92475.0,0.00186212]
[1763611635771,0.34313849,92476.0,92475.0,0.01820212]
[1763611635971,0.34677849,92476.0,92475.0,0.04308212]
[1763611636413,0.22706805,92484.0,92479.0,0.22707841]
[1763611636750,0.34680107,92483.0,92480.0,0.03569314]
[1763611637033,0.02016107,92482.0,92480.0,0.25195422]
[1763611637170,0.02016107,92482.0,92481.0,0.02488]
[1763611637377,0.02016107,92482.0,92481.0,0.04190965]
[1763611637686,0.55941936,92482.0,92481.0,0.01702965]
[1763611637909,0.34316107,92482.0,92481.0,0.01702965]
[1763611638243,0.34316064,92482.0,92481.0,0.23329028]
[1763611638432,0.34316064,92482.0,92481.0,0.25817028]
[1763611638633,0.34316064,92482.0,92481.0,0.04190965]
[1763611638868,0.34680064,92482.0,92481.0,0.04290965]
[1763611639698,0.34680064,92482.0,92481.0,0.04190965]
[1763611639889,0.34316064,92482.0,92481.0,0.04190965]
[1763611640090,0.34680064,92482.0,92481.0,0.04390965]
[1763611640294,0.32664,92482.0,92481.0,0.26017028]
[1763611640510,0.323,92482.0,92481.0,0.26017028]
[1763611640693,0.00364,92482.0,92481.0,0.26017028]
[1763611642219,0.00364,92482.0,92481.0,0.04390965]
[1763611643696,0.00364,92482.0,92481.0,0.00268965]
[1763611644044,0.02161286,92487.0,92484.0,0.01081268]
[1763611644310,0.02161286,92487.0,92486.0,0.01634]
[1763611644584,0.24149946,92487.0,92486.0,0.01688595]
[1763611644791,0.2198866,92487.0,92486.0,0.01688595]
[1763611645631,0.2198866,92487.0,92486.0,0.01792825]
[1763611645764,0.2198866,92487.0,92486.0,0.00158825]
[1763611646449,0.2198866,92487.0,92486.0,0.00258825]
[1763611647070,0.5428866,92487.0,92486.0,0.00258825]
[1763611647681,0.59498909,92487.0,92486.0,0.00258825]
[1763611647899,0.61513943,92487.0,92486.0,0.00258825]
[1763611648527,0.61513943,92487.0,92486.0,0.00158825]
[1763611648885,0.61513943,92487.0,92486.0,0.00058825]
[1763611649333,0.61513943,92487.0,92486.0,0.00158825]
[1763611653319,0.61513194,92487.0,92486.0,0.00158825]
[1763611653938,0.61513194,92487.0,92486.0,0.00058825]
[1763611654380,0.63809179,92487.0,92486.0,0.00058825]
[1763611658186,0.3661027,92487.0,92486.0,0.00058825]
[1763611658564,0.32664,92487.0,92486.0,0.00058825]
[1763611659045,0.323,92487.0,92486.0,0.00058825]
[1763611659458,0.323,92487.0,92486.0,0.21683719]
[1763611659675,0.32664,92487.0,92486.0,0.21683719]
[1763611660098,0.323,92487.0,92486.0,0.21683719]
[1763611660441,0.32664,92487.0,92486.0,0.21783719]
[1763611660859,0.323,92487.0,92486.0,0.23306719]
[1763611661109,0.323,92487.0,92486.0,0.25602719]
[1763611661424,0.32664,92487.0,92486.0,0.25602719]
[1763611661650,0.1102925,92492.0,92491.0,0.21623725]
[1763611661802,0.1139325,92492.0,92491.0,0.23146725]
[1763611662002,0.1139325,92492.0,92491.0,0.25442725]
[1763611662410,0.1139325,92492.0,92491.0,0.23146725]
[1763611662633,0.1139325,92492.0,92491.0,0.25442725]
[1763611663414,0.1139325,92492.0,92491.0,0.25542725]
[1763611663842,0.02161286,92502.0,92501.0,0.21621387]
[1763611664047,0.1102925,92506.0,92504.0,0.21620686]
[1763611664250,0.00364,92505.0,92504.0,0.21620686]
[1763611664484,0.323,92505.0,92504.0,0.21620686]
[1763611664686,0.00364,92505.0,92504.0,0.21620686]
[1763611664887,0.00364,92505.0,92504.0,0.23143686]
[1763611665026,0.00364,92505.0,92504.0,0.25439686]
[1763611665231,0.02161286,92515.0,92504.0,0.25439686]
[1763611665232,0.02161286,92515.0,92514.0,0.21618349]
[1763611665433,0.00364,92515.0,92514.0,0.21618349]
[1763611665841,0.00079891,92517.0,92516.0,0.21617882]
[1763611666194,0.00443891,92517.0,92516.0,0.23140882]
[1763611666351,0.00486178,92517.0,92516.0,0.23140882]
[1763611667155,0.00486178,92517.0,92516.0,0.23240882]
[1763611668196,0.00486178,92517.0,92516.0,0.23340882]
[1763611669479,0.00486178,92517.0,92516.0,0.25636882]
[1763611670273,0.00486178,92517.0,92516.0,0.23340882]
[1763611671007,0.00486178,92517.0,92516.0,0.002]
[1763611671378,0.34947464,92517.0,92516.0,0.002]
[1763611671638,0.32786178,92517.0,92516.0,0.002]
[1763611673330,0.00486178,92517.0,92516.0,0.002]
[1763611673635,0.00486178,92517.0,92516.0,0.21817882]
[1763611673831,0.00486178,92517.0,92516.0,0.002]
[1763611674037,0.32786178,92517.0,92516.0,0.002]
[1763611675006,0.00486178,92517.0,92516.0,0.002]
[1763611676250,0.00486178,92517.0,92516.0,0.01723]
[1763611676445,0.00486178,92517.0,92516.0,0.04019]
[1763611677477,0.00486178,92517.0,92516.0,0.03919]
[1763611678025,0.00486178,92517.0,92516.0,0.04019]
[1763611678529,0.00482177,92517.0,92516.0,0.03919]
[1763611678894,0.00482177,92517.0,92516.0,0.04019]
[1763611679688,0.6177136,92517.0,92516.0,0.002]
[1763611679866,0.53922089,92498.0,92486.0,0.01228]
[1763611680077,0.54286089,92498.0,92484.0,0.01228]
[1763611680279,0.54286089,92498.0,92475.0,0.01228]
[1763611680280,0.59496338,92498.0,92475.0,0.01228]
[1763611680648,0.62743809,92498.0,92475.0,0.01228]
[1763611680808,0.62743809,92498.0,92471.0,0.01228]
[1763611681751,0.64750191,92498.0,92471.0,0.01228]
[1763611682307,0.64750191,92498.0,92450.0,0.01121665]
[1763611682504,0.64750191,92498.0,92455.0,0.02384]
[1763611682968,0.64750191,92498.0,92455.0,0.03465607]
[1763611683184,0.64750191,92498.0,92456.0,0.01081595]
[1763611683325,0.64750191,92498.0,92457.0,0.01081583]
[1763611683526,0.64750191,92498.0,92459.0,0.02384]
[1763611684154,0.64750191,92498.0,92459.0,0.0346556]
[1763611684554,0.64750191,92498.0,92459.0,0.02384]
[1763611685359,0.64750191,92498.0,92471.0,0.01238]
[1763611687362,0.64386191,92498.0,92481.0,0.01238]
[1763611687567,0.64750191,92498.0,92471.0,0.01238]
[1763611687765,0.64750191,92498.0,92481.0,0.01238]
[1763611688115,0.64750191,92498.0,92473.0,0.02384]
[1763611688938,0.62743809,92498.0,92473.0,0.02384]
[1763611689515,0.62743809,92498.0,92471.0,0.01238]
[1763611689914,0.64750018,92498.0,92471.0,0.01238]
[1763611693235,0.64750018,92498.0,92466.0,0.01228]
[1763611693382,0.22712045,92462.0,92457.0,0.22869468]
[1763611693579,0.323,92484.0,92457.0,0.22869468]
[1763611693580,0.00364,92461.0,92459.0,0.21631209]
[1763611693785,0.00364,92461.0,92460.0,0.02163097]
[1763611694143,0.00364,92461.0,92460.0,0.03756097]
[1763611694591,0.00364,92461.0,92460.0,0.1159723]
[1763611694772,0.00564,92461.0,92460.0,0.1159723]
[1763611695183,0.00364,92461.0,92460.0,0.1159723]
[1763611695362,0.00564,92461.0,92460.0,0.1398123]
[1763611695564,0.00664,92461.0,92460.0,0.1398123]
[1763611695776,0.00664,92461.0,92460.0,0.1000423]
[1763611695971,0.32964,92461.0,92460.0,0.1000423]
[1763611696859,0.32964,92461.0,92460.0,4.23e-05]
[1763611697280,0.32864,92461.0,92460.0,4.23e-05]
[1763611697474,0.32664,92461.0,92460.0,4.23e-05]
[1763611697677,0.32664,92461.0,92460.0,0.0010423]
[1763611697879,0.32664,92461.0,92460.0,0.0020423]
[1763611698891,0.32664,92461.0,92460.0,0.00314582]
[1763611702322,0.00364,92461.0,92460.0,0.04291582]
[1763611702906,0.32664,92461.0,92460.0,0.04291582]
[1763611703179,0.00364,92461.0,92460.0,0.04291582]
[1763611703384,0.00364,92461.0,92460.0,0.0527313]
[1763611703546,0.00364,92461.0,92460.0,0.0517313]
[1763611703725,0.00364,92461.0,92460.0,0.04191582]
[1763611703930,0.00364,92461.0,92460.0,0.04291582]
[1763611704126,0.32664,92461.0,92460.0,0.04291582]
[1763611706354,0.32664,92461.0,92460.0,0.01907582]
[1763611707515,0.32664,92461.0,92460.0,0.04370582]
[1763611708577,0.00364,92461.0,92460.0,0.04370582]
[1763611708977,0.54294741,92461.0,92460.0,0.04370582]
[1763611710870,0.54294741,92461.0,92460.0,0.01907582]
[1763611711073,0.323,92461.0,92460.0,0.04370582]
[1763611711249,0.32664,92461.0,92460.0,0.04370582]
[1763611712496,0.00364,92461.0,92460.0,0.0545213]
[1763611713293,0.00364,92461.0,92460.0,0.04370582]
[1763611714101,0.00364,92461.0,92460.0,0.00314582]
[1763611714300,0.47753809,92461.0,92460.0,0.00314582]
[1763611714519,0.39889197,92461.0,92460.0,0.00314582]
[1763611714756,0.39525197,92461.0,92460.0,0.00314582]
[1763611714956,0.39889197,92461.0,92460.0,0.00314582]
[1763611715548,0.39889197,92461.0,92460.0,0.00214582]
[1763611715918,0.39889197,92461.0,92460.0,0.00314582]
[1763611716159,0.39889197,92461.0,92460.0,0.00214582]
[1763611716357,0.39889197,92461.0,92460.0,0.00114582]
[1763611716485,0.39889197,92461.0,92460.0,0.00214582]
[1763611716700,0.39889197,92461.0,92460.0,0.00314582]
[1763611717544,0.34678948,92461.0,92460.0,0.00314582]
[1763611718348,0.34314948,92461.0,92460.0,0.00314582]
[1763611718572,0.34678948,92461.0,92460.0,0.00314582]
[1763611718750,0.02014948,92461.0,92460.0,0.00314582]
[1763611718956,0.04540234,92461.0,92460.0,0.01921582]
[1763611719588,0.04176234,92461.0,92460.0,0.01921582]
[1763611719800,0.02014948,92461.0,92460.0,0.04219582]
[1763611720009,0.00364,92461.0,92460.0,0.04219582]
[1763611721250,0.02525286,92461.0,92460.0,0.04219582]
[1763611721663,0.04539517,92461.0,92460.0,0.04219582]
[1763611722148,0.02525286,92461.0,92460.0,0.04219582]
[1763611722349,0.26170424,92461.0,92460.0,0.04219582]
[1763611722479,0.24009138,92461.0,92460.0,0.04219582]
[1763611723121,0.24009138,92461.0,92460.0,0.00314582]
[1763611723939,0.21994741,92461.0,92460.0,0.00314582]